bitfinex/quotes_BTCUSD_20251114
["timestamp","ask_amount","ask_price","bid_price","bid_amount"]
[1763112753418,0.20613868,97023.0,97020.0,0.04293]
[1763112753620,0.01030396,97050.0,97020.0,0.02293]
[1763112753750,0.04341874,97039.0,97021.0,0.02253]
[1763112753962,0.20613555,97024.0,97021.0,0.02253]
[1763112755109,0.20613555,97024.0,97020.0,0.00109507]
[1763112755110,0.24955967,97021.0,97020.0,0.00109507]
[1763112755833,0.24955967,97021.0,97020.0,0.02109507]
[1763112756038,0.24955967,97021.0,97020.0,0.00109507]
[1763112756455,0.04341874,97021.0,97020.0,0.00109507]
[1763112757214,0.25055967,97021.0,97020.0,0.00109507]
[1763112758836,0.24955967,97021.0,97020.0,0.00109507]
[1763112760238,0.25055967,97021.0,97020.0,0.00109507]
[1763112760483,0.24955967,97021.0,97020.0,0.00109507]
[1763112760684,0.24955967,97021.0,97020.0,0.02109507]
[1763112760886,0.25055967,97021.0,97020.0,0.02109507]
[1763112761220,0.57355967,97021.0,97020.0,0.02109507]
[1763112761344,0.57355967,97021.0,97020.0,0.00109507]
[1763112761545,0.36741874,97021.0,97020.0,0.00109507]
[1763112761749,0.04541874,97021.0,97020.0,0.00109507]
[1763112762185,0.04341874,97021.0,97020.0,0.00109507]
[1763112762790,0.14103435,97021.0,97020.0,0.00109507]
[1763112763108,0.04341874,97021.0,97020.0,0.00109507]
[1763112763309,0.04205774,97021.0,97020.0,0.00109507]
[1763112763456,0.04305774,97021.0,97020.0,0.00109507]
[1763112763650,0.04205774,97021.0,97020.0,0.00109507]
[1763112763871,0.46267335,97021.0,97020.0,0.00109507]
[1763112764084,0.46367335,97021.0,97020.0,0.02109507]
[1763112765149,0.46467335,97021.0,97020.0,0.02109507]
[1763112765687,0.46467335,97021.0,97020.0,0.00109507]
[1763112765688,0.46367335,97021.0,97020.0,0.00109507]
[1763112766041,0.46467335,97021.0,97020.0,0.00109507]
[1763112766422,0.46367335,97021.0,97020.0,0.00109507]
[1763112766829,0.46267335,97021.0,97020.0,0.00109507]
[1763112767200,0.46367335,97021.0,97020.0,0.00109507]
[1763112767933,0.46367335,97021.0,97020.0,0.02109507]
[1763112768364,0.46467335,97021.0,97020.0,0.02109507]
[1763112769067,0.46467335,97021.0,97020.0,0.00109507]
[1763112769508,0.46467335,97021.0,97020.0,0.02109507]
[1763112769734,0.57319867,97021.0,97020.0,0.00109507]
[1763112770170,0.36705774,97021.0,97020.0,0.00109507]
[1763112770950,0.36605774,97021.0,97020.0,0.00109507]
[1763112771326,0.36505774,97021.0,97020.0,0.00109507]
[1763112771539,0.46267335,97021.0,97020.0,0.02109507]
[1763112771699,0.46367335,97021.0,97020.0,0.02109507]
[1763112771902,0.46267335,97021.0,97020.0,0.00109507]
[1763112772129,0.36505774,97021.0,97020.0,0.00109507]
[1763112772536,0.36605774,97021.0,97020.0,0.00109507]
[1763112772894,0.36605774,97021.0,97020.0,0.02109507]
[1763112773314,0.36705774,97021.0,97020.0,0.02109507]
[1763112773513,0.36705774,97021.0,97020.0,0.00109507]
[1763112773722,0.36705774,97021.0,97020.0,0.02109507]
[1763112775016,0.36705774,97021.0,97020.0,0.00109507]
[1763112775630,0.36605774,97021.0,97020.0,0.02109507]
[1763112775988,0.36705774,97021.0,97020.0,0.02109507]
[1763112776296,0.36605774,97021.0,97020.0,0.02109507]
[1763112776516,0.36705774,97021.0,97020.0,0.00109507]
[1763112777890,0.57319867,97021.0,97020.0,0.00109507]
[1763112779077,0.57319867,97021.0,97010.0,0.0004]
[1763112779078,0.63252991,97021.0,97010.0,0.0004]
[1763112779289,0.57258092,97011.0,97010.0,0.0004]
[1763112780269,0.67019653,97011.0,97010.0,0.0004]
[1763112780899,0.5725873,97008.0,97007.0,9e-05]
[1763112782341,0.323,97008.0,97007.0,9e-05]
[1763112783005,0.01030609,97030.0,97020.0,0.02]
[1763112783206,0.20614787,97018.0,97016.0,0.0161]
[1763112783411,0.09761561,97026.0,97007.0,0.01232]
[1763112783412,0.20616524,97010.0,97007.0,0.01232]
[1763112783646,0.04341874,97015.0,97011.0,0.20616177]
[1763112783846,0.20615448,97015.0,97011.0,0.20616177]
[1763112784048,0.20615286,97016.0,97009.0,0.2061653]
[1763112784049,0.20615659,97014.0,97009.0,0.2061653]
[1763112784228,0.07893887,97032.0,97018.0,0.0161]
[1763112784407,0.20613902,97022.0,97018.0,0.0161]
[1763112784601,0.36641874,97021.0,97018.0,0.0161]
[1763112784803,0.36641874,97021.0,97018.0,0.22224646]
[1763112785116,0.20615902,97013.0,97011.0,0.00024065]
[1763112785315,0.04341874,97012.0,97011.0,0.00024065]
[1763112785920,0.36641874,97012.0,97011.0,0.00024065]
[1763112786852,0.36741874,97012.0,97011.0,0.00024065]
[1763112787245,0.04341874,97013.0,97011.0,0.00024065]
[1763112787445,0.01030609,97030.0,97020.0,0.02]
[1763112787791,0.01030502,97040.0,97021.0,0.01199]
[1763112787792,0.09761561,97029.0,97021.0,0.01199]
[1763112787930,0.20613755,97023.0,97021.0,0.01199]
[1763112788137,0.20616006,97012.0,97011.0,0.00024065]
[1763112788336,0.2495788,97012.0,97011.0,0.00024065]
[1763112789169,0.2505788,97012.0,97011.0,0.00024065]
[1763112789374,0.2495788,97012.0,97011.0,0.00024065]
[1763112789774,0.5735788,97012.0,97011.0,0.00024065]
[1763112790669,0.36741874,97012.0,97011.0,0.00024065]
[1763112792056,0.04441874,97012.0,97011.0,0.00024065]
[1763112792191,0.04341874,97016.0,97013.0,0.20615793]
[1763112792390,0.04341874,97016.0,97015.0,0.20615354]
[1763112792595,0.03684936,97058.0,97015.0,0.20615354]
[1763112792797,0.323,97025.0,97016.0,0.02256]
[1763112793098,0.04341874,97024.0,97023.0,0.20613545]
[1763112793896,0.36641874,97028.0,97026.0,0.20612872]
[1763112794034,0.36641874,97028.0,97016.0,0.02256]
[1763112794233,0.04341874,97022.0,97017.0,0.02256]
[1763112794435,0.09761561,97039.0,97017.0,0.02256]
[1763112794436,0.36641874,97029.0,97025.0,0.20613138]
[1763112794676,0.5725431,97029.0,97026.0,0.01199]
[1763112794934,0.36641874,97027.0,97026.0,0.01199]
[1763112795280,0.323,97027.0,97026.0,0.01199]
[1763112795895,0.323,97033.0,97027.0,0.02256]
[1763112796092,0.20614036,97022.0,97015.0,0.20615254]
[1763112796319,0.04341874,97031.0,97012.0,0.02256]
[1763112796551,0.36641874,97027.0,97012.0,0.02256]
[1763112796706,0.04341874,97026.0,97016.0,0.20615038]
[1763112796906,0.04341874,97026.0,97023.0,0.20613618]
[1763112797129,0.04341874,97026.0,97025.0,0.02701]
[1763112797346,0.323,97027.0,97025.0,0.02701]
[1763112797553,0.20613026,97027.0,97025.0,0.02701]
[1763112797776,0.20613026,97027.0,97025.0,0.01199]
[1763112798635,0.20611969,97031.0,97011.0,0.00024065]
[1763112798636,0.2061585,97013.0,97011.0,0.00024065]
[1763112799788,0.2071585,97013.0,97011.0,0.00024065]
[1763112800397,0.2071585,97013.0,97012.0,0.20616006]
[1763112800398,0.001,97013.0,97012.0,0.20616006]
[1763112801518,0.04341874,97024.0,97011.0,0.00024065]
[1763112801720,0.323,97025.0,97011.0,0.00024065]
[1763112801721,0.20616006,97012.0,97011.0,0.00024065]
[1763112801923,0.001,97013.0,97011.0,0.22896263]
[1763112802137,0.20615233,97016.0,97011.0,0.22896263]
[1763112802419,0.20615606,97014.0,97011.0,0.22896263]
[1763112802647,0.20616006,97012.0,97011.0,0.00024065]
[1763112803398,0.20615538,97015.0,97011.0,0.00124065]
[1763112803807,0.20614518,97020.0,97011.0,0.00124065]
[1763112803808,0.04341874,97017.0,97011.0,0.00124065]
[1763112804163,0.20616006,97012.0,97011.0,0.00024065]
[1763112804493,0.20616006,97012.0,97011.0,0.00124065]
[1763112805010,0.04341874,97015.0,97014.0,0.20615581]
[1763112805211,0.04341874,97019.0,97012.0,0.02256]
[1763112805520,0.20616006,97012.0,97011.0,0.00024065]
[1763112806317,0.04341874,97019.0,97011.0,0.00024065]
[1763112806318,0.04341874,97019.0,97014.0,0.20615442]
[1763112806638,0.04341874,97015.0,97014.0,0.20615442]
[1763112806832,0.04341874,97015.0,97011.0,0.2064025]
[1763112806833,0.20616006,97012.0,97011.0,0.00024065]
[1763112807493,0.2495788,97012.0,97011.0,0.00024065]
[1763112808090,0.2505788,97012.0,97011.0,0.00024065]
[1763112808307,0.2495788,97012.0,97011.0,0.00024065]
[1763112808511,0.04341874,97012.0,97011.0,0.00024065]
[1763112808684,0.04441874,97012.0,97011.0,0.20640283]
[1763112808888,0.04441874,97012.0,97011.0,0.00024065]
[1763112809085,0.04441874,97012.0,97011.0,0.20640283]
[1763112810397,0.04441874,97012.0,97011.0,0.00024065]
[1763112810398,0.2505788,97012.0,97011.0,0.00024065]
[1763112812278,0.04441874,97012.0,97011.0,0.00024065]
[1763112812408,0.2505788,97012.0,97011.0,0.00024065]
[1763112813343,0.34819441,97012.0,97011.0,0.00024065]
[1763112813502,0.67119441,97012.0,97011.0,0.00024065]
[1763112813924,0.74942786,97012.0,97011.0,0.00024065]
[1763112814098,0.75042786,97012.0,97011.0,0.00024065]
[1763112814525,0.74942786,97012.0,97011.0,0.00024065]
[1763112814738,0.75042786,97012.0,97011.0,0.00024065]
[1763112815150,0.74942786,97012.0,97011.0,0.00024065]
[1763112815348,0.75142786,97012.0,97011.0,0.00024065]
[1763112815841,0.99392786,97012.0,97011.0,6.5e-07]
[1763112816631,1.09959724,97012.0,97011.0,6.5e-07]
[1763112816979,0.99592786,97012.0,97011.0,6.5e-07]
[1763112817415,0.99492786,97012.0,97011.0,6.5e-07]
[1763112817616,0.99492786,97012.0,97011.0,0.00100065]
[1763112818602,0.99392786,97012.0,97011.0,0.00100065]
[1763112821336,0.99392786,97012.0,97011.0,6.5e-07]
[1763112821568,0.99392786,97012.0,96970.0,0.0004]
[1763112821569,0.24962343,96991.0,96970.0,0.0004]
[1763112821813,0.05372801,97000.0,96936.0,0.03]
[1763112821814,0.2497383,96937.0,96936.0,0.03]
[1763112822022,0.02664772,96937.0,96936.0,0.03]
[1763112822234,0.323,96949.0,96936.0,0.03]
[1763112822720,0.54583738,96950.0,96936.0,0.03]
[1763112822721,0.323,96946.0,96936.0,0.03]
[1763112822934,0.20630254,96945.0,96936.0,0.03]
[1763112823158,0.07777111,96946.0,96936.0,0.03]
[1763112823382,0.20631267,96941.0,96936.0,0.03]
[1763112823608,0.20631773,96938.0,96936.0,0.03]
[1763112823840,0.323,96937.0,96936.0,0.03]
[1763112824051,0.36641874,96937.0,96936.0,0.03]
[1763112824942,0.04441874,96937.0,96936.0,0.03]
[1763112826583,0.001,96937.0,96936.0,0.03]
[1763112827231,0.323,96966.0,96941.0,0.20631105]
[1763112827415,0.323,96966.0,96940.0,0.01031565]
[1763112827416,0.323,96966.0,96951.0,0.20628972]
[1763112827650,0.21656393,96970.0,96965.0,0.00123067]
[1763112827824,0.2062372,96976.0,96961.0,0.0115]
[1763112828193,0.0103114,96980.0,96961.0,0.0115]
[1763112828345,0.3333114,96980.0,96963.0,0.20626424]
[1763112828548,0.0103114,96980.0,96963.0,0.20626424]
[1763112828754,0.0103114,96980.0,96955.0,0.02347]
[1763112828755,0.04341874,96968.0,96951.0,0.0115]
[1763112828947,0.36641874,96971.0,96961.0,0.001]
[1763112829129,0.36641874,96965.0,96961.0,0.001]
[1763112829331,0.36641874,96965.0,96962.0,0.20626637]
[1763112829532,0.09761561,96982.0,96962.0,0.20626637]
[1763112829779,0.01031034,96990.0,96981.0,0.01565]
[1763112830020,0.20618838,96999.0,96981.0,0.01565]
[1763112830222,0.20622345,96983.0,96969.0,0.20624989]
[1763112830357,0.20622345,96983.0,96972.0,0.0115]
[1763112830557,0.323,96988.0,96982.0,0.01565]
[1763112830770,0.55650765,97000.0,96972.0,0.0115]
[1763112830771,0.000361,97000.0,96987.0,0.01565]
[1763112830983,0.001,96990.0,96981.0,0.20622461]
[1763112831253,0.09761561,96992.0,96981.0,0.20622461]
[1763112831396,0.2062132,96987.0,96968.0,0.20625314]
[1763112831603,0.09761561,96992.0,96962.0,0.02447]
[1763112831798,0.20622283,96983.0,96971.0,0.20624616]
[1763112832066,0.20622283,96983.0,96962.0,0.02347]
[1763112832067,0.36641874,96980.0,96962.0,0.02347]
[1763112832221,0.36641874,96972.0,96965.0,0.0115]
[1763112832419,0.36641874,96970.0,96953.0,0.20628547]
[1763112832642,0.323,96970.0,96951.0,0.0115]
[1763112832867,0.36641874,96961.0,96951.0,0.0115]
[1763112833023,0.36641874,96957.0,96951.0,0.0115]
[1763112833224,0.04341874,96953.0,96938.0,0.0115]
[1763112833483,0.09761561,96962.0,96938.0,0.0115]
[1763112833484,0.20630955,96942.0,96938.0,0.0115]
[1763112833794,0.20630508,96944.0,96938.0,0.0115]
[1763112833968,0.20631105,96941.0,96938.0,0.0115]
[1763112834267,0.20631105,96941.0,96920.0,0.01071778]
[1763112834268,0.04341874,96937.0,96927.0,0.0115]
[1763112834571,0.36641874,96937.0,96927.0,0.0115]
[1763112835457,0.36641874,96937.0,96936.0,0.031]
[1763112835864,0.36641874,96938.0,96936.0,0.03]
[1763112836239,0.57273807,96938.0,96936.0,0.031]
[1763112836507,0.02034667,96937.0,96936.0,0.031]
[1763112836643,0.13121994,96937.0,96936.0,0.031]
[1763112836984,0.04341874,96937.0,96936.0,0.031]
[1763112837140,0.55615091,96960.0,96936.0,0.031]
[1763112837141,0.323,96948.0,96936.0,0.031]
[1763112837343,0.04341874,96948.0,96936.0,0.031]
[1763112837565,0.09761561,96937.0,96936.0,0.03]
[1763112837775,0.04341874,96944.0,96936.0,0.031]
[1763112837987,0.09761561,96945.0,96936.0,0.031]
[1763112838204,0.36641874,96937.0,96936.0,0.03]
[1763112838396,0.36641874,96937.0,96920.0,0.0004]
[1763112838397,0.57277236,96921.0,96920.0,0.0004]
[1763112838601,0.36641874,96921.0,96920.0,0.0004]
[1763112839162,0.20632259,96936.0,96929.0,0.0115]
[1763112839452,0.04341874,96934.0,96929.0,0.0115]
[1763112839598,0.323,96935.0,96929.0,0.0115]
[1763112840002,0.04341874,96934.0,96929.0,0.0115]
[1763112840355,0.24974551,96934.0,96929.0,0.0115]
[1763112840514,0.323,96931.0,96929.0,0.0115]
[1763112840715,0.36641874,96921.0,96920.0,0.00044]
[1763112842121,0.04341874,96922.0,96920.0,0.00044]
[1763112842378,0.04341874,96922.0,96920.0,0.00144]
[1763112842684,0.04341874,96921.0,96920.0,0.00144]
[1763112843751,0.04341874,96921.0,96920.0,0.00287571]
[1763112844180,0.06545468,96921.0,96920.0,0.00287571]
[1763112844764,0.06545468,96921.0,96920.0,0.00291571]
[1763112845573,0.20643535,96883.0,96873.0,0.01138]
[1763112845750,0.2064369,96882.0,96873.0,0.01138]
[1763112845974,0.04341874,96899.0,96874.0,0.20645312]
[1763112846176,0.323,96909.0,96873.0,0.01138]
[1763112846177,0.323,96897.0,96885.0,0.01138]
[1763112846376,0.323,96892.0,96885.0,0.01138]
[1763112846752,0.323,96893.0,96885.0,0.01138]
[1763112847093,0.323,96893.0,96876.0,9e-05]
[1763112847297,0.57286609,96877.0,96876.0,9e-05]
[1763112847851,0.36641874,96877.0,96876.0,9e-05]
[1763112848488,0.323,96877.0,96876.0,9e-05]
[1763112848699,0.36641874,96877.0,96876.0,9e-05]
[1763112849473,0.04341874,96818.0,96770.0,0.4]
[1763112849698,0.57305592,96788.0,96787.0,0.08253882]
[1763112849874,0.57305592,96788.0,96787.0,0.05154458]
[1763112849875,0.62362681,96788.0,96787.0,0.05154458]
[1763112850074,0.62362681,96788.0,96787.0,0.02055034]
[1763112850075,0.66022758,96788.0,96787.0,0.02055034]
[1763112850240,0.63163823,96788.0,96787.0,0.02055034]
[1763112850445,0.59503746,96788.0,96787.0,0.02055034]
[1763112851126,0.20670184,96758.0,96745.0,9e-05]
[1763112851343,0.04341874,96769.0,96745.0,9e-05]
[1763112851344,0.20672417,96748.0,96745.0,9e-05]
[1763112851493,0.04341874,96769.0,96745.0,9e-05]
[1763112851696,0.04341874,96767.0,96745.0,9e-05]
[1763112851894,0.14103435,96761.0,96760.0,0.02]
[1763112852285,0.20665167,96782.0,96768.0,0.012]
[1763112852456,0.003,96788.0,96787.0,0.01523]
[1763112852761,0.001,96788.0,96787.0,0.02723]
[1763112852979,0.001,96788.0,96787.0,0.012]
[1763112853724,0.002,96788.0,96787.0,0.012]
[1763112853902,0.001,96788.0,96787.0,0.012]
[1763112854310,0.001,96788.0,96773.0,0.02473]
[1763112854509,0.001,96788.0,96787.0,0.02723]
[1763112854690,0.001,96788.0,96787.0,0.012]
[1763112854889,0.323,96799.0,96787.0,0.2186386]
[1763112855091,0.323,96799.0,96788.0,0.20663718]
[1763112855293,0.25000683,96811.0,96810.0,0.02]
[1763112855492,0.25000683,96811.0,96794.0,0.20662386]
[1763112855493,0.04341874,96807.0,96794.0,0.20662386]
[1763112855718,0.04341874,96805.0,96792.0,0.20662864]
[1763112856036,0.04341874,96805.0,96790.0,0.01033164]
[1763112856037,0.36641874,96810.0,96800.0,0.02]
[1763112856301,0.20656462,96822.0,96820.0,0.02]
[1763112856510,0.20653262,96837.0,96830.0,0.02]
[1763112856713,0.01032524,96850.0,96822.0,0.01523]
[1763112856714,0.20652956,96839.0,96822.0,0.01523]
[1763112856930,0.20652512,96841.0,96840.0,0.02]
[1763112857278,0.20656035,96824.0,96810.0,0.012]
[1763112857482,0.20656088,96824.0,96810.0,0.012]
[1763112857660,0.01032631,96840.0,96830.0,0.02]
[1763112857661,0.24996416,96831.0,96830.0,0.02]
[1763112857861,0.20656648,96822.0,96819.0,0.012]
[1763112858234,0.05374505,96840.0,96800.0,0.21033057]
[1763112858235,0.20657774,96816.0,96803.0,0.012]
[1763112858366,0.20656675,96821.0,96803.0,0.012]
[1763112858367,0.09761561,96821.0,96810.0,0.02]
[1763112858548,0.20657726,96817.0,96803.0,0.012]
[1763112858746,0.206585,96813.0,96803.0,0.012]
[1763112858947,0.04341874,96816.0,96803.0,0.012]
[1763112859212,0.20660148,96805.0,96803.0,0.012]
[1763112859425,0.04341874,96820.0,96810.0,0.02]
[1763112859630,0.04341874,96820.0,96803.0,0.012]
[1763112859934,0.323,96831.0,96830.0,0.02]
[1763112860062,0.36641874,96831.0,96830.0,0.02]
[1763112860416,0.57296416,96831.0,96830.0,0.02]
[1763112860965,0.04341874,96831.0,96830.0,0.02]
[1763112861819,0.04341874,96831.0,96821.0,0.20656599]
[1763112862021,0.20652783,96840.0,96820.0,0.012]
[1763112862022,0.02734342,96858.0,96830.0,0.02555737]
[1763112862219,0.54583738,96870.0,96840.0,0.20652435]
[1763112862220,0.11935541,96852.0,96840.0,0.20652435]
[1763112862436,0.11935541,96852.0,96844.0,0.20651598]
[1763112862437,0.09761561,96852.0,96844.0,0.20651598]
[1763112862663,0.02734342,96866.0,96823.0,0.00260011]
[1763112862871,0.02734342,96866.0,96790.0,0.02040137]
[1763112862872,0.323,96838.0,96784.0,0.39827287]
[1763112863082,0.01032631,96840.0,96791.0,0.012]
[1763112863083,0.04341874,96819.0,96791.0,0.012]
[1763112863434,0.04341874,96819.0,96782.0,0.20664922]
[1763112863435,0.20660089,96807.0,96782.0,0.20664922]
[1763112863639,0.01032844,96820.0,96780.0,0.40665213]
[1763112863640,0.323,96806.0,96780.0,0.40665213]
[1763112863831,0.20660089,96805.0,96790.0,0.20663221]
[1763112864050,0.323,96806.0,96780.0,0.2]
[1763112864234,0.20661137,96801.0,96788.0,0.20663638]
[1763112864439,0.20660089,96805.0,96780.0,0.75617009]
[1763112864660,0.04341874,96810.0,96804.0,0.012]
[1763112864853,0.04341874,96811.0,96804.0,0.012]
[1763112865087,0.04341874,96811.0,96799.0,0.012]
[1763112865295,0.20660592,96803.0,96790.0,0.02066332]
[1763112865508,0.20661443,96799.0,96790.0,0.02066332]
[1763112865790,0.20661443,96799.0,96760.0,0.21866294]
[1763112865791,0.2066263,96794.0,96774.0,0.02473]
[1763112865999,0.01032951,96810.0,96765.0,0.20668451]
[1763112866214,0.20661489,96799.0,96784.0,0.20664493]
[1763112866412,0.20663144,96791.0,96785.0,0.02169776]
[1763112866629,0.04341874,96799.0,96768.0,0.012]
[1763112866932,0.20664538,96785.0,96769.0,0.2066769]
[1763112867076,0.20664849,96783.0,96776.0,0.02186769]
[1763112867280,0.20664849,96783.0,96768.0,0.012]
[1763112867487,0.20665276,96781.0,96768.0,0.012]
[1763112867685,0.20665276,96781.0,96770.0,0.206675]
[1763112867892,0.04341874,96799.0,96768.0,0.012]
[1763112868096,0.04341874,96799.0,96776.0,0.02473]
[1763112868309,0.04341874,96803.0,96776.0,0.02573]
[1763112868510,0.04341874,96803.0,96780.0,0.21698484]
[1763112868711,0.04341874,96804.0,96792.0,0.2066276]
[1763112868909,0.04341874,96804.0,96781.0,0.02473]
[1763112869308,0.04341874,96804.0,96794.0,0.20662333]
[1763112869509,0.04341874,96802.0,96791.0,0.2066292]
[1763112869715,0.20661804,96797.0,96782.0,0.02473]
[1763112869908,0.09761561,96805.0,96782.0,0.02473]
[1763112869909,0.04341874,96804.0,96782.0,0.02473]
[1763112870110,0.04341874,96801.0,96796.0,0.012]
[1763112870514,0.04341874,96801.0,96782.0,0.02473]
[1763112870955,0.04341874,96804.0,96782.0,0.02473]
[1763112871114,0.323,96811.0,96804.0,0.01586]
[1763112871333,0.09761561,96828.0,96804.0,0.03932898]
[1763112871539,0.09761561,96828.0,96809.0,0.20659032]
[1763112871730,0.20656152,96824.0,96810.0,0.20659]
[1763112871930,0.20656152,96824.0,96785.0,0.30996479]
[1763112871931,0.09761561,96813.0,96780.0,0.2]
[1763112872136,0.09761561,96813.0,96760.0,0.23642644]
[1763112872137,0.01033057,96800.0,96769.0,0.01222]
[1763112872337,0.04341874,96786.0,96769.0,0.01222]
[1763112872576,0.20665183,96782.0,96769.0,0.01222]
[1763112872774,0.25006647,96784.0,96770.0,0.02424015]
[1763112872985,0.04341874,96782.0,96762.0,0.01222]
[1763112873186,0.04341874,96786.0,96763.0,0.0235]
[1763112873400,0.09761561,96798.0,96780.0,0.20665363]
[1763112873603,0.09761561,96798.0,96785.0,0.01586]
[1763112873764,0.09761561,96828.0,96786.0,0.0235]
[1763112873765,0.20660314,96804.0,96786.0,0.0235]
[1763112873959,0.46403435,96798.0,96797.0,0.00329794]
[1763112874159,0.37386172,96820.0,96797.0,0.00329794]
[1763112874160,0.04341874,96801.0,96797.0,0.00329794]
[1763112874361,0.2066184,96797.0,96786.0,0.2301414]
[1763112874619,0.2066184,96797.0,96787.0,0.0235]
[1763112874826,0.20661547,96799.0,96788.0,0.20663718]
[1763112875104,0.20661876,96797.0,96788.0,0.023]
[1763112875265,0.20661406,96799.0,96788.0,0.22963696]
[1763112875478,0.20661807,96797.0,96788.0,0.023]
[1763112875748,0.20657708,96817.0,96787.0,0.001]
[1763112875880,0.04341874,96818.0,96798.0,0.01586]
[1763112876090,0.20659915,96806.0,96798.0,0.01586]
[1763112876682,0.20659915,96806.0,96788.0,0.02513292]
[1763112876683,0.20663718,96788.0,96750.0,0.01999998]
[1763112876885,0.20668662,96765.0,96750.0,0.2]
[1763112877091,0.20668662,96765.0,96748.0,0.21894098]
[1763112877313,0.01033271,96780.0,96748.0,0.01222]
[1763112877552,0.20667989,96768.0,96742.0,0.01222]
[1763112877712,0.09761561,96759.0,96746.0,0.02190468]
[1763112877935,0.09761561,96759.0,96742.0,0.01222]
[1763112878142,0.2067244,96748.0,96742.0,0.01222]
[1763112878683,0.2067244,96748.0,96727.0,0.01222]
[1763112878816,0.20672649,96747.0,96741.0,0.01222]
[1763112879018,0.20672475,96747.0,96746.0,0.001]
[1763112879674,0.20672423,96748.0,96746.0,0.001]
[1763112880145,0.20672423,96748.0,96729.0,0.0235]
[1763112880303,0.20672423,96748.0,96716.0,0.01222]
[1763112880304,0.25014563,96746.0,96716.0,0.01222]
[1763112880504,0.27216689,96746.0,96716.0,0.21901025]
[1763112880679,0.30086417,96746.0,96716.0,0.01222]
[1763112881544,0.30186417,96746.0,96716.0,0.01222]
[1763112881750,0.02969728,96746.0,96739.0,0.01222]
[1763112881954,0.02869728,96746.0,96739.0,0.01222]
[1763112882151,0.07211602,96746.0,96716.0,0.01222]
[1763112882390,0.39511602,96746.0,96721.0,0.20678012]
[1763112882539,0.60184291,96746.0,96723.0,0.0235]
[1763112882743,0.60184291,96746.0,96728.0,0.20676517]
[1763112883087,0.60184291,96746.0,96727.0,0.20676566]
[1763112883288,0.60279637,96746.0,96725.0,0.03]
[1763112883492,0.36641874,96736.0,96725.0,0.03]
[1763112883629,0.67080398,96726.0,96725.0,0.024375]
[1763112883964,0.67083605,96711.0,96710.0,0.0004]
[1763112884699,0.42061561,96711.0,96710.0,0.0004]
[1763112884896,0.09761561,96711.0,96710.0,0.0004]
[1763112885241,0.09761561,96726.0,96710.0,0.0004]
[1763112885493,0.001,96711.0,96710.0,0.0004]
[1763112885887,0.001,96711.0,96710.0,0.0060357]
[1763112886406,0.2078017,96711.0,96710.0,0.0060357]
[1763112886827,0.2068017,96711.0,96710.0,0.0060357]
[1763112886964,0.25122044,96711.0,96710.0,0.0060357]
[1763112887161,0.57322044,96711.0,96710.0,0.0060357]
[1763112887386,0.31014434,96730.0,96710.0,0.0060357]
[1763112887387,0.20679963,96712.0,96710.0,0.0060357]
[1763112887596,0.09861561,96711.0,96710.0,0.0004]
[1763112888017,0.09761561,96711.0,96710.0,0.0004]
[1763112888222,0.09761561,96711.0,96710.0,0.0060357]
[1763112888223,0.09861561,96711.0,96710.0,0.0060357]
[1763112888429,0.09761561,96711.0,96710.0,0.0060357]
[1763112888827,0.04341874,96718.0,96711.0,0.20680067]
[1763112889034,0.04341874,96718.0,96710.0,0.0004]
[1763112889209,0.04341874,96718.0,96717.0,0.00544744]
[1763112889407,0.323,96722.0,96719.0,0.01222]
[1763112889836,0.36641874,96728.0,96721.0,0.20677863]
[1763112890054,0.36641874,96728.0,96719.0,0.01222]
[1763112890256,0.38419763,96750.0,96719.0,0.01222]
[1763112890455,0.09761561,96741.0,96728.0,0.01586]
[1763112890658,0.09761561,96741.0,96720.0,0.0235]
[1763112890857,0.04341874,96740.0,96732.0,0.20675577]
[1763112891195,0.323,96740.0,96734.0,0.20675117]
[1763112891340,0.20671273,96753.0,96743.0,0.20673316]
[1763112891552,0.20671721,96751.0,96740.0,0.01586]
[1763112891755,0.01033378,96770.0,96740.0,0.03936]
[1763112891962,0.20670302,96758.0,96747.0,0.20672381]
[1763112892157,0.01033378,96770.0,96741.0,0.0235]
[1763112892358,0.00951027,96769.0,96765.0,0.2066863]
[1763112892559,0.21696595,96790.0,96766.0,0.22857266]
[1763112892780,0.20664719,96784.0,96772.0,0.20667021]
[1763112893059,0.03660077,96806.0,96766.0,0.02189063]
[1763112893060,0.10712626,96783.0,96779.0,0.20665575]
[1763112893256,0.00951065,96782.0,96767.0,0.0235]
[1763112893411,0.00951065,96781.0,96780.0,0.02]
[1763112893573,0.03142918,96791.0,96790.0,0.02]
[1763112893776,0.02854011,96791.0,96790.0,0.02]
[1763112894001,0.02854011,96791.0,96789.0,0.21885448]
[1763112894201,0.02191589,96797.0,96789.0,0.21885448]
[1763112894202,0.00951329,96790.0,96789.0,0.21885448]
[1763112894402,0.09761561,96813.0,96789.0,0.01222]
[1763112894403,0.00951751,96796.0,96789.0,0.01222]
[1763112894637,0.03660077,96812.0,96789.0,0.01222]
[1763112894638,0.02734342,96808.0,96803.0,0.20660499]
[1763112894953,0.02855311,96807.0,96789.0,0.01222]
[1763112895154,0.323,96805.0,96798.0,0.2066158]
[1763112895438,0.05047198,96804.0,96798.0,0.20661583]
[1763112895653,0.02855311,96803.0,96799.0,0.02188358]
[1763112895785,0.04926229,96810.0,96801.0,0.20660943]
[1763112895786,0.02856597,96802.0,96801.0,0.20660943]
[1763112895993,0.02856597,96802.0,96796.0,0.20661811]
[1763112896187,0.02856597,96801.0,96799.0,0.20661207]
[1763112896383,0.02191887,96807.0,96794.0,0.01222]
[1763112896384,0.20661764,96798.0,96794.0,0.01222]
[1763112896586,0.02856886,96797.0,96794.0,0.01222]
[1763112896787,0.20662224,96795.0,96794.0,0.01222]
[1763112897010,0.21614423,96795.0,96794.0,0.01222]
[1763112897204,0.02857149,96795.0,96794.0,0.01222]
[1763112897872,0.02857149,96795.0,96789.0,0.1363]
[1763112898003,0.02857117,96794.0,96772.0,0.01222]
[1763112898217,0.20662864,96792.0,96790.0,0.02]
[1763112898416,0.02857117,96791.0,96790.0,0.02]
[1763112898618,0.60162069,96791.0,96790.0,0.02]
[1763112899037,0.02734342,96810.0,96790.0,0.20663291]
[1763112899209,0.12619578,96809.0,96798.0,0.20661529]
[1763112899410,0.14814574,96808.0,96791.0,0.02188529]
[1763112899632,0.14814574,96808.0,96786.0,0.01222]
[1763112899633,0.05053013,96807.0,96789.0,0.0235]
[1763112899838,0.04341874,96805.0,96786.0,0.01222]